bitfinex/quotes_SOLUSD_20250131
["timestamp","ask_amount","ask_price","bid_price","bid_amount"]
[1738353161198,0.8674,230.57,230.48,26.04459982]
[1738353161503,0.8674,230.57,230.48,4.3687]
[1738353161704,0.8674,230.57,230.48,26.04459982]
[1738353162008,0.8674,230.57,230.48,4.3687]
[1738353162894,0.8674,230.57,230.48,26.04459982]
[1738353163203,0.8674,230.57,230.48,4.3687]
[1738353163389,0.8674,230.57,230.48,0.03]
[1738353165408,0.81327747,230.56,230.48,0.03]
[1738353165906,0.8674,230.57,230.48,0.03]
[1738353166086,0.8674,230.57,230.48,21.70589982]
[1738353166409,0.8674,230.57,230.5,13.41184853]
[1738353166781,0.8674,230.57,230.48,13.44184853]
[1738353167102,0.8674,230.57,230.48,0.03]
[1738353168812,20.0,230.55,230.48,0.03]
[1738353169283,0.8674,230.57,230.48,0.03]
[1738353169696,20.0,230.55,230.48,0.03]
[1738353170888,0.8675,230.54,230.48,0.03]
[1738353171495,0.8675,230.54,230.48,21.70589982]
[1738353171698,0.8675,230.54,230.49,13.41184853]
[1738353172305,0.8675,230.54,230.48,0.03]
[1738353172527,0.8674,230.57,230.48,0.03]
[1738353172816,20.0,230.55,230.48,0.03]
[1738353174195,0.81326634,230.56,230.48,0.03]
[1738353175222,0.8674,230.55,230.48,0.03]
[1738353175801,0.81338685,230.54,230.48,0.03]
[1738353176506,23.0361,230.55,230.48,0.03]
[1738353176798,20.8674,230.55,230.48,0.03]
[1738353177320,0.8674,230.55,230.49,26.97662387]
[1738353178420,0.8673,230.58,230.49,26.97662387]
[1738353178607,0.8673,230.58,230.49,13.41184853]
[1738353178798,0.8673,230.58,230.49,35.11292746]
[1738353179515,20.0,230.57,230.5,21.70107893]
[1738353180524,0.8674,230.56,230.49,13.41184853]
[1738353180823,0.8674,230.56,230.48,35.26841746]
[1738353181524,0.8674,230.56,230.48,39.60711746]
[1738353181727,2.2314,230.59,230.53,35.11292746]
[1738353181728,0.9303,230.59,230.53,35.11292746]
[1738353182020,0.9303,230.59,230.54,13.41184853]
[1738353183124,0.81314325,230.58,230.48,0.03]
[1738353184116,82.6,230.57,230.48,0.03]
[1738353184423,20.0,230.54,230.48,0.03]
[1738353184600,0.81350207,230.53,230.48,0.03]
[1738353185228,0.8676,230.52,230.48,0.03]
[1738353185403,0.81350023,230.51,230.48,0.03]
[1738353186319,0.81351098,230.53,230.48,0.03]
[1738353186526,0.8675,230.53,230.48,0.03]
[1738353187935,1.68089322,230.53,230.48,0.03]
[1738353189835,0.8675,230.53,230.48,0.03]
[1738353193834,0.8676,230.51,230.48,0.03]
[1738353194129,0.81347834,230.5,230.48,0.03]
[1738353194333,1.68115592,230.51,230.48,0.03]
[1738353194930,0.8676,230.51,230.48,0.03]
[1738353196934,0.81355067,230.5,230.48,0.03]
[1738353197129,20.0,230.49,230.48,0.03]
[1738353197637,0.81355067,230.5,230.48,0.03]
[1738353198220,0.8676,230.51,230.48,0.03]
[1738353201719,20.0,230.54,230.48,0.03]
[1738353201918,20.8134485,230.53,230.48,0.03]
[1738353203132,0.8676,230.52,230.48,0.03]
[1738353203542,0.81345093,230.51,230.48,0.03]
[1738353205327,20.0,230.53,230.48,0.03]
[1738353205328,0.8676,230.5,230.48,0.03]
[1738353206521,0.8676,230.52,230.48,0.03]
[1738353207440,0.81346028,230.51,230.48,0.03]
[1738353207852,1.68111599,230.52,230.48,0.03]
[1738353208020,0.8676,230.52,230.48,0.03]
[1738353209439,0.81350327,230.51,230.48,0.03]
[1738353210625,0.8676,230.5,230.48,0.03]
[1738353211330,0.81355969,230.49,230.48,0.03]
[1738353211951,0.8676,230.5,230.48,0.03]
[1738353212125,0.81355972,230.49,230.48,0.03]
[1738353212727,1.68125972,230.49,230.48,0.03]
[1738353213247,0.8677,230.49,230.48,0.03]
[1738353213629,0.8676,230.5,230.48,0.03]
[1738353214422,0.81356045,230.49,230.48,0.03]
[1738353214624,1.68118651,230.5,230.48,0.03]
[1738353223059,74.88171658,230.51,230.48,0.03]
[1738353223252,0.81160509,230.5,230.48,0.03]
[1738353223437,1.0,230.47,230.34,0.063]
[1738353223640,1.98499542,230.46,230.34,0.063]
[1738353223852,6.17334592,230.46,230.34,0.063]
[1738353225053,20.0,230.43,230.34,0.063]
[1738353225257,0.81160509,230.42,230.34,0.063]
[1738353225459,0.868,230.41,230.34,0.063]
[1738353225635,0.81160509,230.4,230.34,0.063]
[1738353226638,0.868,230.41,230.34,14.28353087]
[1738353226944,0.8679,230.43,230.37,26.98123088]
[1738353227332,0.8678,230.45,230.38,0.6510344]
[1738353227557,0.8677,230.47,230.38,0.6510344]
[1738353227736,0.81160509,230.46,230.38,0.6510344]
[1738353227933,0.81160509,230.46,230.37,13.56938235]
[1738353227934,0.81160509,230.46,230.36,1.5628]
[1738353228161,0.81160509,230.46,230.35,13.41184853]
[1738353228860,0.81160509,230.46,230.36,0.65106289]
[1738353229063,0.81160509,230.46,230.37,13.41184853]
[1738353229271,0.81160509,230.46,230.39,13.41184853]
[1738353229457,1.67940509,230.46,230.41,13.41184853]
[1738353229645,0.8678,230.46,230.41,13.41184853]
[1738353229840,20.0,230.47,230.43,13.41184853]
[1738353230169,20.8678,230.47,230.43,13.41184853]
[1738353230376,0.8678,230.47,230.42,0.65094861]
[1738353230541,0.81160509,230.46,230.39,13.56938235]
[1738353230868,0.8678,230.47,230.4,0.6509375]
[1738353231460,0.87460509,230.46,230.39,13.56938235]
[1738353231671,0.87460509,230.46,230.38,0.6509334]
[1738353232550,0.87460509,230.46,230.39,13.41184853]
[1738353232756,0.87460509,230.46,230.37,13.41184853]
[1738353233159,0.87460509,230.46,230.39,13.41184853]
[1738353233546,0.8678,230.45,230.37,13.41184853]
[1738353233946,0.8678,230.45,230.39,13.41184853]
[1738353233947,1.67940509,230.45,230.39,13.41184853]
[1738353234452,1.67940509,230.45,230.37,13.41184853]
[1738353235569,1.67940509,230.45,230.39,13.41184853]
[1738353235746,0.8678,230.45,230.37,13.41184853]
[1738353236049,0.8678,230.45,230.39,13.41184853]
[1738353240097,0.8678,230.45,230.38,0.65098445]
[1738353240098,0.063,230.46,230.41,13.41184853]
[1738353240450,0.9308,230.46,230.41,13.41184853]
[1738353240846,0.9308,230.46,230.43,13.41184853]
[1738353240847,0.063,230.46,230.43,13.41184853]
[1738353241755,0.063,230.46,230.42,0.65083152]
[1738353241960,0.9308,230.46,230.42,0.65083152]
[1738353242167,0.063,230.46,230.43,13.41184853]
[1738353242647,0.063,230.46,230.45,13.41184853]
[1738353243082,0.063,230.46,230.43,4.99043281]
[1738353243578,0.063,230.46,230.43,0.65083281]
[1738353244758,0.063,230.46,230.42,13.41184853]
[1738353244958,0.9308,230.46,230.34,7.721]
[1738353245162,0.81160509,230.45,230.35,0.65102017]
[1738353246075,0.9308,230.46,230.36,26.98123088]
[1738353246286,0.4308,230.46,230.38,13.56938235]
[1738353246580,0.81160509,230.5,230.37,0.65091374]
[1738353246750,0.81160509,230.5,230.38,13.41184853]
[1738353246949,0.81160509,230.5,230.4,13.41184853]
[1738353247372,0.8677,230.49,230.4,13.41184853]
[1738353247597,1.67930509,230.49,230.42,13.41184853]
[1738353247752,0.8677,230.49,230.43,0.65086122]
[1738353247954,0.8677,230.49,230.42,14.06272618]
[1738353248282,0.81160509,230.48,230.42,14.06272618]
[1738353248783,1.67920509,230.5,230.42,14.06272618]
[1738353249082,1.67920509,230.5,230.4,18.40293096]
[1738353253386,0.8676,230.5,230.41,13.53733853]
[1738353253680,0.8676,230.5,230.43,13.41184853]
[1738353253868,0.8676,230.5,230.44,0.65079364]
[1738353254268,0.8676,230.5,230.45,13.41184853]
[1738353254781,0.8676,230.51,230.45,13.41184853]
[1738353255273,0.063,230.5,230.45,13.41184853]
[1738353255473,0.063,230.5,230.47,13.41184853]
[1738353255675,0.063,230.5,230.49,13.41184853]
[1738353256772,0.063,230.5,230.48,0.6507411]
[1738353256979,0.063,230.5,230.47,20.0]
[1738353257184,0.063,230.5,230.48,13.41184853]
[1738353257557,0.063,230.5,230.47,13.41184853]
[1738353257855,0.063,230.5,230.48,0.65072858]
[1738353258187,0.063,230.5,230.49,0.65073537]
[1738353259061,0.063,230.5,230.48,0.65069155]
[1738353260673,0.063,230.5,230.48,4.98939155]
[1738353261171,0.063,230.5,230.49,33.41184853]
[1738353263077,0.063,230.5,230.49,17.75034853]
[1738353263589,0.063,230.5,230.49,18.40098065]
[1738353263775,0.063,230.5,230.49,14.06248065]
[1738353264494,0.063,230.5,230.44,0.12549]
[1738353264495,0.063,230.5,230.44,0.65074202]
[1738353264691,0.063,230.5,230.45,13.41184853]
[1738353265289,0.9306,230.5,230.45,13.41184853]
[1738353266202,0.9306,230.5,230.44,13.41184853]
[1738353266500,0.9306,230.5,230.44,14.06266628]
[1738353266699,0.9306,230.5,230.44,0.65081775]
[1738353266871,0.81160509,230.49,230.4,0.680816]
[1738353267075,0.81160509,230.49,230.45,0.03]
[1738353267301,0.8677,230.48,230.45,0.03]
[1738353267481,0.81160509,230.47,230.45,0.03]
[1738353268500,0.8677,230.48,230.45,0.03]
[1738353269396,0.87460509,230.5,230.45,0.03]
[1738353269587,0.8677,230.49,230.45,0.03]
[1738353269787,0.81160509,230.48,230.45,0.03]
[1738353270784,0.8677,230.49,230.45,0.03]
[1738353271418,1.67930509,230.48,230.45,0.03]
[1738353271700,0.9307,230.5,230.45,0.03]
[1738353271897,0.81160509,230.49,230.45,0.03]
[1738353272877,0.9307,230.5,230.45,0.03]
[1738353273202,1.67930509,230.49,230.45,0.03]
[1738353273397,0.87460509,230.5,230.45,0.03]
[1738353274006,0.063,230.5,230.46,13.41184853]
[1738353274172,0.063,230.5,230.47,0.65072647]
[1738353274877,0.063,230.5,230.48,13.41184853]
[1738353275073,0.063,230.5,230.49,14.06253797]
[1738353276398,0.063,230.5,230.49,18.40103797]
[1738353278403,0.063,230.5,230.49,22.99501797]
[1738353278579,0.063,230.5,230.49,20.21061797]
[1738353281407,0.063,230.5,230.49,21.3137099]
[1738353284693,0.063,230.59,230.54,13.41184853]
[1738353285014,0.063,230.59,230.55,0.65044343]
[1738353285381,0.063,230.59,230.57,13.41184853]
[1738353285606,0.063,230.59,230.57,14.06230171]
[1738353286882,0.063,230.59,230.58,0.25098]
[1738353287098,0.063,230.59,230.58,27.35770088]
[1738353287388,0.063,230.59,230.58,31.69450088]
[1738353287584,0.03,230.65,230.62,20.12549]
[1738353287794,0.03,230.65,230.64,27.10672088]
[1738353288922,0.03,230.65,230.64,17.87303853]
[1738353291303,0.03,230.65,230.64,31.44242088]
[1738353291817,0.03,230.65,230.64,17.87303853]
[1738353293213,0.03,230.65,230.64,17.99852853]
[1738353294621,0.03,230.65,230.64,17.87303853]
[1738353295529,0.063,230.69,230.68,20.25098]
[1738353295820,0.03,230.74,230.73,0.12549]
[1738353295995,0.03,230.74,230.73,34.18722311]
[1738353296619,0.03,230.74,230.73,14.06173311]
[1738353297034,0.03,230.74,230.73,13.41184853]
[1738353297616,0.03,230.74,230.69,0.650068]
[1738353298017,0.03,230.74,230.67,0.65012034]
[1738353298218,0.03,230.74,230.68,13.41184853]
[1738353298414,0.03,230.74,230.69,0.65005666]
[1738353298713,0.03,230.74,230.69,4.98475666]
[1738353298908,0.03,230.74,230.7,13.41184853]
[1738353299114,0.03,230.74,230.71,0.65002331]
[1738353299417,0.03,230.74,230.72,13.41184853]
[1738353299739,0.03,230.74,230.73,14.31277849]
[1738353300632,0.03,230.74,230.73,27.75667084]
[1738353300834,0.03,230.74,230.73,32.09067084]
[1738353301024,0.03,230.74,230.73,0.64994996]
[1738353301343,0.03,230.74,230.71,13.41184853]
[1738353301519,0.03,230.74,230.72,0.65003283]
[1738353302131,0.03,230.74,230.73,20.0]
[1738353303230,0.03,230.74,230.73,33.41184853]
[1738353303430,0.03,230.74,230.73,34.06185184]
[1738353303958,0.03,230.74,230.73,38.39585184]
[1738353304246,0.03,230.74,230.73,38.52134184]
[1738353304618,0.03,230.74,230.73,34.06185184]
[1738353304820,0.03,230.74,230.73,13.41184853]
[1738353305038,0.03,230.74,230.68,0.65003138]
[1738353305215,0.84160509,230.74,230.68,0.65003138]
[1738353305538,0.03,230.74,230.7,13.41184853]
[1738353306051,0.03,230.74,230.68,13.41184853]
[1738353306364,0.84160509,230.74,230.65,20.0]
[1738353306648,0.84160509,230.74,230.66,34.06205678]
[1738353306947,0.8668,230.73,230.66,34.06205678]
[1738353307238,0.81160509,230.72,230.66,34.06205678]
[1738353307615,0.81160509,230.72,230.61,0.65022967]
[1738353307816,0.03,230.74,230.68,0.12549]
[1738353308019,0.03,230.74,230.73,13.41184853]
[1738353308239,0.03,230.74,230.73,0.65005109]
[1738353308617,0.03,230.74,230.73,14.06189962]
[1738353309126,0.03,230.74,230.73,27.88226197]
[1738353309443,0.03,230.74,230.73,14.18738962]
[1738353309614,0.03,230.74,230.73,14.31287962]
[1738353310015,0.03,230.74,230.73,14.06189962]
[1738353310426,0.03,230.74,230.73,14.31287962]
[1738353310945,0.03,230.74,230.73,27.88226197]
[1738353311323,0.03,230.74,230.73,27.75677197]
[1738353311526,0.03,230.74,230.73,14.18738962]
[1738353312449,0.03,230.74,230.73,14.06189962]
[1738353312625,0.03,230.74,230.73,13.41184853]
[1738353313435,0.03,230.74,230.73,27.10672088]
[1738353313932,0.03,230.74,230.73,27.75668423]
[1738353315353,0.03,230.74,230.73,14.18730188]
[1738353315660,0.03,230.74,230.67,18.55436075]
[1738353315837,0.03,230.74,230.68,0.12549]
[1738353316160,8.49740509,230.73,230.62,0.65015131]
[1738353316363,8.49740509,230.73,230.66,20.0]
[1738353316662,1.5023,230.73,230.67,14.06207338]
[1738353317024,0.03,230.74,230.68,13.69487235]
[1738353317256,0.03,230.74,230.7,13.41184853]
[1738353317762,0.03,230.74,230.68,20.0]
[1738353318362,0.03,230.74,230.69,13.41184853]
[1738353318550,0.03,230.74,230.7,0.03]
[1738353318856,0.03,230.74,230.73,13.41184853]
[1738353319061,0.03,230.74,230.73,14.18734038]
[1738353319430,0.03,230.74,230.73,13.41184853]
[1738353319723,0.03,230.74,230.73,14.06188666]
[1738353319940,0.03,230.74,230.73,13.41184853]
[1738353320145,0.03,230.74,230.73,14.06188287]
[1738353320347,0.03,230.74,230.73,14.18737287]
[1738353321665,0.03,230.74,230.73,14.06188287]
[1738353321869,0.03,230.74,230.73,20.0]
[1738353322163,0.03,230.74,230.7,0.03]
[1738353322333,0.81160509,230.73,230.7,0.03]
[1738353323454,0.8668,230.73,230.7,0.03]
[1738353323623,0.81160509,230.72,230.7,0.03]
[1738353324838,0.8668,230.71,230.7,0.03]
[1738353326556,0.8668,230.72,230.7,0.03]
[1738353326756,0.81160509,230.71,230.7,0.03]
[1738353328561,1.67840509,230.71,230.7,0.03]
[1738353329031,199.97,230.7,230.62,13.41184853]
[1738353329231,0.81160509,230.69,230.62,13.41184853]
[1738353329526,0.81160509,230.69,230.61,26.98123088]
[1738353329736,0.867,230.68,230.61,26.98123088]
[1738353329929,0.81160509,230.67,230.61,13.41184853]
[1738353330145,0.81160509,230.67,230.62,20.0]
[1738353330659,1.5275,230.66,230.55,14.24976635]
[1738353330859,6.0012,230.64,230.55,0.03]
[1738353331037,75.69332167,230.63,230.55,0.03]
[1738353331744,3.0352,230.62,230.55,0.03]
[1738353331946,0.81160509,230.61,230.55,0.03]
[1738353332239,0.81160509,230.61,230.57,13.56938235]
[1738353332449,1.67870509,230.65,230.59,13.56938235]
[1738353332636,1.67870509,230.65,230.58,13.56938235]
[1738353333565,1.67870509,230.65,230.56,13.56938235]
[1738353334279,0.81160509,230.68,230.63,20.0]
[1738353334452,199.97,230.7,230.67,13.56938235]
[1738353334634,199.97,230.7,230.69,13.56938235]
[1738353335764,199.97,230.7,230.67,17.90438235]
[1738353335956,199.97,230.7,230.69,13.56938235]
[1738353336877,199.97,230.7,230.69,21.65947368]
[1738353337771,199.97,230.7,230.68,20.65019293]
[1738353337944,199.97,230.7,230.65,22.30963967]
[1738353338149,199.97,230.7,230.64,21.65947368]
[1738353338363,199.97,230.7,230.67,20.0]
[1738353341044,199.97,230.7,230.68,13.41184853]
[1738353341243,199.97,230.7,230.69,4.3348]
[1738353341887,200.033,230.7,230.69,4.3348]
[1738353343851,200.033,230.7,230.57,21.6847]
[1738353344054,0.063,230.7,230.67,20.0]
[1738353344290,0.063,230.7,230.69,21.65947368]
[1738353345890,0.063,230.7,230.69,25.99427368]
[1738353346076,0.063,230.7,230.69,39.65710221]
[1738353346785,0.03,230.74,230.73,13.53733853]
[1738353346987,0.063,230.75,230.74,0.12549]
[1738353347283,0.063,230.75,230.73,35.19681221]
[1738353348088,0.063,230.75,230.74,17.87113853]
[1738353349183,0.063,230.75,230.74,17.99662853]
[1738353350193,0.03,230.78,230.77,20.12549]
[1738353350394,0.03,230.78,230.77,55.19681221]
[1738353350574,0.03,230.78,230.77,55.32230221]
[1738353351194,0.0001,230.8,230.79,0.12549]
[1738353351396,0.0001,230.8,230.79,35.19681221]
[1738353351777,0.03,230.83,230.82,20.25098]
[1738353352092,0.03,230.88,230.84,13.66282853]
[1738353352404,0.03,230.88,230.84,39.65430221]
[1738353354496,1.03,230.88,230.84,25.99147368]
[1738353354792,1.0,230.86,230.84,25.99147368]
[1738353355796,1.0,230.86,230.84,21.65947368]
[1738353355976,1.0,230.84,230.81,21.65947368]
[1738353356173,1.0,230.84,230.81,25.99177368]
[1738353356495,0.03,230.85,230.83,41.65947368]
[1738353356708,0.03,230.85,230.84,20.0]
[1738353357888,0.03,230.85,230.84,4.332]
[1738353358473,0.03,230.85,230.84,37.86933853]
[1738353358705,0.03,230.85,230.84,17.86933853]
[1738353360287,0.03,230.85,230.84,4.332]
[1738353360479,0.03,230.85,230.83,21.65947368]
[1738353360682,0.03,230.85,230.77,10.8329]
[1738353360683,1.0,230.84,230.81,21.65947368]
[1738353360880,1.0,230.82,230.81,21.65947368]
[1738353361601,1.0,230.8,230.78,25.99257368]
[1738353361898,1.0,230.82,230.81,20.0]
[1738353362111,1.0,230.82,230.8,21.65947368]
[1738353362675,2.0,230.82,230.8,21.65947368]
[1738353362878,2.0,230.82,230.78,4.3331]
[1738353362879,2.0,230.82,230.81,20.0]
[1738353363100,2.0,230.82,230.78,25.99257368]
[1738353363703,2.4818141,230.85,230.69,1.79519]
[1738353363704,1.0,230.77,230.76,21.65947368]
[1738353364079,1.0,230.8,230.78,20.0]
[1738353364080,1.0,230.79,230.78,20.0]
[1738353364379,1.0,230.79,230.78,41.65947368]
[1738353365098,1.0,230.8,230.78,55.07132221]
[1738353365296,1.0,230.8,230.79,21.65947368]
[1738353365806,1.0,230.8,230.78,33.41184853]
[1738353365986,1.0,230.8,230.79,21.65947368]
[1738353366699,1.0,230.8,230.79,20.0]
[1738353367087,1.0,230.8,230.78,20.0]
[1738353368313,1.0,230.76,230.75,21.65947368]
[1738353368913,1.0,230.76,230.74,33.53236744]
[1738353370408,1.0,230.75,230.74,33.53236744]
[1738353370787,1.0,230.75,230.74,37.86616744]
[1738353371119,2.0,230.77,230.74,37.86616744]
[1738353371297,1.0,230.77,230.76,13.53236744]
[1738353372012,1.0,230.77,230.74,33.53236744]
[1738353372320,2.0,230.77,230.74,33.53236744]
[1738353372905,1.0,230.77,230.76,13.53236744]
[1738353373514,2.0,230.79,230.78,20.0]
[1738353373704,1.0,230.79,230.78,33.53236744]
[1738353374029,1.0,230.79,230.78,20.0]
[1738353374715,1.0,230.79,230.78,13.53236744]
[1738353375115,1.0,230.81,230.8,20.0]
[1738353375289,1.0,230.83,230.81,13.53236744]
[1738353375489,1.0,230.83,230.82,13.53236744]
[1738353375793,1.0,230.81,230.8,33.53236744]
[1738353376905,1.0,230.81,230.8,37.86506744]
[1738353377413,75.91171658,230.85,230.81,13.41184853]
[1738353377414,1.0,230.83,230.81,13.41184853]
[1738353377608,1.03,230.85,230.84,20.0]
[1738353377811,1.03,230.85,230.84,46.94421597]
[1738353378605,0.03,230.85,230.84,51.40170597]
[1738353379221,0.03,230.85,230.84,33.53236744]
[1738353379389,0.03,230.85,230.82,17.86456744]
[1738353379711,1.0,230.84,230.83,20.0]
[1738353380891,1.0,230.84,230.83,13.53236744]
[1738353382015,0.03,230.85,230.83,13.53236744]
[1738353382220,0.03,230.85,230.83,17.86446744]
[1738353382516,0.03,230.85,230.84,13.41184853]
[1738353382689,0.03,230.85,230.84,35.16700586]
[1738353383600,0.03,230.85,230.84,35.04151586]
[1738353384018,0.03,230.85,230.84,21.62966733]
[1738353384216,0.03,230.85,230.84,20.0]
[1738353384396,1.0,230.81,230.79,25.96246733]
[1738353384821,1.0,230.81,230.8,13.41184853]
[1738353385127,1.0,230.78,230.76,21.62966733]
[1738353385633,1.0,230.78,230.77,13.41184853]
[1738353386427,1.0,230.78,230.76,21.62966733]
[1738353386806,1.0,230.77,230.76,21.62966733]
[1738353388416,1.0,230.77,230.76,20.0]
[1738353388737,1.0,230.78,230.76,21.62966733]
[1738353388917,1.0,230.78,230.76,41.62966733]
[1738353389840,1.0,230.78,230.77,21.62966733]
[1738353391115,2.0,230.78,230.77,21.62966733]
[1738353392115,2.0,230.78,230.76,20.0]
[1738353392932,1.0,230.77,230.76,20.0]
[1738353394611,1.0,230.78,230.76,20.0]
[1738353394943,74.94471658,230.83,230.71,21.62966733]
[1738353394944,1.0,230.72,230.71,21.62966733]
[1738353395250,1.0,230.72,230.71,35.04151586]
[1738353395423,1.0,230.72,230.71,21.62966733]
[1738353395813,1.0,230.72,230.71,25.96406733]
[1738353400315,1.0,230.72,230.71,21.62966733]
[1738353401536,1.0,230.72,230.71,21.65966733]
[1738353403245,1.0,230.72,230.71,25.99406733]
[1738353404646,2.11255728,230.79,230.74,20.0]
[1738353404647,1.0,230.76,230.74,20.0]
[1738353404948,1.0,230.76,230.75,13.53126718]
[1738353405519,1.0,230.76,230.75,17.86486718]
[1738353407539,1.0,230.78,230.77,20.0]
[1738353407850,1.0,230.78,230.76,13.53126718]
[1738353408343,1.0,230.76,230.74,17.86506718]
[1738353408529,1.0,230.73,230.72,13.53126718]
[1738353408720,1.0,230.73,230.71,0.03]
[1738353408721,1.0,230.72,230.71,0.03]
[1738353409960,1.0,230.72,230.71,20.03]
[1738353410558,1.81271628,230.72,230.71,0.03]
[1738353411365,1.0,230.72,230.71,0.03]
[1738353413270,2.3002,230.72,230.71,0.03]
[1738353414364,77.18191658,230.72,230.71,0.03]
[1738353417436,75.88171658,230.72,230.71,0.03]
[1738353419165,76.00720658,230.72,230.71,0.03]
[1738353419465,1.0,230.72,230.71,0.03]
[1738353421067,1.81273048,230.72,230.71,0.03]
[1738353421548,1.0,230.72,230.71,0.03]
[1738353423756,2.3002,230.72,230.71,0.03]
[1738353424572,77.18191658,230.72,230.71,0.03]
[1738353426166,83.68481658,230.72,230.71,0.03]
[1738353427374,3.64529,230.7,230.69,0.03]
[1738353427539,20.0,230.67,230.55,13.53126718]
[1738353427740,1.0,230.56,230.55,17.86866718]
[1738353427953,1.0,230.56,230.55,13.53126718]
[1738353428159,1.0,230.56,230.55,17.86866718]
[1738353428954,2.0,230.56,230.55,17.86866718]
[1738353429151,1.0,230.59,230.56,0.25098]
[1738353429369,1.0,230.6,230.58,13.53126718]
[1738353429547,1.0,230.62,230.58,13.53126718]
[1738353429880,1.0,230.62,230.61,13.53126718]
[1738353430546,2.0,230.6,230.59,13.53126718]
[1738353431451,1.0,230.56,230.55,17.86866718]
[1738353431656,2.0,230.54,230.53,13.53126718]
[1738353431971,2.0,230.54,230.52,13.44184853]
[1738353432155,2.0,230.54,230.52,17.77974853]
[1738353432665,2.0,230.54,230.52,0.03]
[1738353434273,2.0,230.54,230.53,13.53126718]
[1738353435977,2.0,230.54,230.52,0.03]
[1738353436164,0.81342386,230.53,230.52,0.03]
[1738353436544,2.0,230.54,230.52,13.56126718]
[1738353439981,2.0,230.54,230.52,17.89916718]
[1738353440374,1.0,230.54,230.52,17.89916718]
[1738353440882,2.0,230.56,230.52,17.89916718]
[1738353441074,2.0,230.56,230.55,13.53126718]
[1738353442175,1.0,230.56,230.55,31.28051571]
[1738353444271,1.0,230.59,230.56,13.53733853]
[1738353444581,1.0,230.61,230.59,13.41184853]
[1738353444873,1.0,230.61,230.6,13.53126718]
[1738353445451,2.0,230.61,230.6,13.53126718]
[1738353446179,1.0,230.61,230.6,13.53126718]
[1738353446365,1.0,230.61,230.6,17.86776718]
[1738353446871,1.0,230.61,230.6,31.27961571]
[1738353447668,2.0,230.63,230.61,13.41184853]
[1738353447856,2.0,230.63,230.62,26.94311571]
[1738353448060,1.0,230.63,230.62,26.94311571]
[1738353448255,1.0,230.67,230.63,13.41184853]
[1738353448462,1.0,230.67,230.66,26.94311571]
[1738353449183,0.063,230.69,230.62,21.2027]
[1738353449184,1.0,230.64,230.62,17.86736718]
[1738353449494,1.0,230.63,230.62,17.86736718]
[1738353449775,1.0,230.66,230.63,13.41184853]
[1738353449984,1.0,230.66,230.65,26.94311571]
[1738353450381,1.0,230.66,230.65,31.27861571]
[1738353450975,2.0,230.66,230.65,13.53126718]
[1738353451182,2.0,230.66,230.65,17.86676718]
[1738353451389,1.0,230.66,230.65,31.27861571]
[1738353452382,2.0,230.66,230.65,31.27861571]
[1738353454988,1.0,230.66,230.65,31.27861571]
[1738353456292,1.0,230.66,230.65,31.40410571]
[1738353459265,1.0,230.66,230.65,31.43410571]
[1738353462397,0.063,230.69,230.66,13.66282853]
[1738353462693,0.063,230.69,230.68,13.53126718]
[1738353463597,0.063,230.69,230.68,17.86626718]
[1738353464284,0.063,230.69,230.68,31.40360571]
[1738353464594,0.063,230.69,230.68,31.52909571]
[1738353465578,0.0001,230.69,230.68,31.52909571]
[1738353468291,0.0001,230.69,230.68,31.27811571]
[1738353472673,0.0001,230.69,230.68,31.30811571]